bitfinex/quotes_SOLUSD_20250708
["timestamp","ask_amount","ask_price","bid_price","bid_amount"]
[1751981733443,15.29527696,152.01,151.94,7.20422217]
[1751981733644,18.64964886,152.07,151.94,7.20422217]
[1751981733645,40.67743293,152.08,152.0,8.71676239]
[1751981733821,8.71676239,152.04,151.99,8.71676239]
[1751981734021,8.71676239,152.04,151.96,18.64964886]
[1751981734221,43.99676239,152.03,151.98,8.71676239]
[1751981734452,8.71676239,152.01,151.96,8.71676239]
[1751981734742,35.28,152.03,151.95,8.71676239]
[1751981734743,26.0,152.02,151.95,8.71676239]
[1751981734947,8.71676239,152.01,151.93,18.64964886]
[1751981735249,15.29552538,152.01,151.94,12.01021968]
[1751981735447,6.57876299,152.01,151.98,8.71676239]
[1751981735628,6.57876299,152.01,151.97,8.71676239]
[1751981736945,35.28,152.03,151.99,8.71676239]
[1751981738025,35.28,152.03,151.98,8.71676239]
[1751981738026,50.5745356,152.03,151.98,8.71676239]
[1751981738240,8.71676239,152.02,151.95,26.0]
[1751981738431,8.71676239,152.02,151.97,8.71676239]
[1751981739437,6.57851457,152.01,151.98,8.71676239]
[1751981740451,6.57817928,152.02,151.98,8.71676239]
[1751981741351,41.8577863,152.03,151.99,8.71676239]
[1751981741674,43.99676239,152.03,151.96,25.23032798]
[1751981741836,35.28,152.03,151.99,8.71676239]
[1751981742156,34.71676239,152.04,151.99,8.71676239]
[1751981742541,15.29444518,152.03,151.99,8.71676239]
[1751981742752,6.57768279,152.03,151.99,8.71676239]
[1751981743754,6.57768279,152.03,152.0,8.71676239]
[1751981744132,6.57733758,152.04,152.0,8.71676239]
[1751981744333,8.77676239,152.05,152.01,12.03394283]
[1751981744636,8.77676239,152.05,152.0,8.71676239]
[1751981744846,8.77676239,152.05,152.01,7.22149442]
[1751981745366,15.35371302,152.05,152.0,8.71676239]
[1751981745532,15.35371302,152.05,152.01,7.22353819]
[1751981745732,15.35371302,152.05,152.01,15.94030058]
[1751981745961,15.35371302,152.05,152.01,8.71676239]
[1751981746542,15.35371302,152.05,152.02,7.22765373]
[1751981746936,12.45895935,152.05,152.01,5.82200872]
[1751981747136,6.63695063,152.05,152.02,7.22750957]
[1751981747344,6.63695063,152.05,152.03,7.23106589]
[1751981747558,6.63695063,152.05,152.01,5.82200872]
[1751981747865,12.45895935,152.05,152.02,7.23279482]
[1751981748062,12.45895935,152.05,152.0,5.82200872]
[1751981748239,12.45895935,152.05,152.01,12.05714166]
[1751981748435,6.63695063,152.05,152.02,7.23936908]
[1751981748663,6.63695063,152.05,152.01,5.82200872]
[1751981748842,6.63695063,152.05,152.02,12.06294586]
[1751981749159,6.63695063,152.05,152.01,5.82200872]
[1751981749360,6.63695063,152.05,152.02,4.82777864]
[1751981749563,6.63695063,152.05,152.01,5.82200872]
[1751981749867,6.63695063,152.05,152.02,4.82797021]
[1751981750043,6.63695063,152.05,152.01,5.82200872]
[1751981750363,6.63695063,152.05,152.02,4.83195578]
[1751981750654,6.63695063,152.05,152.01,5.82200872]
[1751981750861,6.63695063,152.05,152.02,4.83195578]
[1751981751069,6.63695063,152.05,152.01,5.82200872]
[1751981751234,6.63695063,152.05,152.02,4.836219]
[1751981751440,6.63695063,152.05,152.0,5.82200872]
[1751981751656,6.63695063,152.05,152.01,12.09351998]
[1751981751835,6.63695063,152.05,152.0,5.82200872]
[1751981751836,6.63695063,152.05,152.02,12.09351998]
[1751981752036,6.63695063,152.05,152.0,5.82200872]
[1751981752236,6.63695063,152.05,152.01,12.09369163]
[1751981752452,6.63695063,152.05,152.02,12.09369163]
[1751981752758,6.63695063,152.05,152.03,4.83628767]
[1751981752956,6.63695063,152.05,151.99,5.82200872]
[1751981753161,12.45895935,152.05,152.0,12.10491868]
[1751981753336,5.82200872,152.04,152.01,7.26417135]
[1751981753542,5.82200872,152.04,152.02,7.26417135]
[1751981753764,6.63695063,152.05,152.0,5.82200872]
[1751981753938,6.63695063,152.05,152.01,7.27148678]
[1751981754257,6.63695063,152.05,152.02,7.27138215]
[1751981754464,6.63695063,152.05,152.03,7.27804025]
[1751981754771,6.63695063,152.05,152.0,5.82200872]
[1751981754937,5.82200872,152.03,152.01,7.27804314]
[1751981755140,5.82200872,152.02,151.98,5.82200872]
[1751981755354,23.07891051,152.05,151.99,7.27883769]
[1751981755563,5.82200872,152.02,152.0,7.27883769]
[1751981755866,5.82200872,152.02,151.98,5.82200872]
[1751981756063,5.82200872,152.02,151.99,7.2853469]
[1751981756269,12.4002742,152.02,152.0,7.2853469]
[1751981756569,26.0,151.93,151.87,12.26685335]
[1751981756778,40.82200872,151.92,151.88,7.29573695]
[1751981757078,7.68,151.95,151.87,12.40649668]
[1751981757079,35.1,151.94,151.9,5.82200872]
[1751981757241,7.68,151.95,151.91,7.29573695]
[1751981757436,7.68,151.95,151.91,5.82200872]
[1751981757637,5.82200872,151.93,151.89,5.82200872]
[1751981757861,5.82200872,151.91,151.81,23.0541434]
[1751981758162,12.40570435,151.9,151.85,5.82200872]
[1751981758345,5.82200872,151.89,151.84,5.82200872]
[1751981758545,5.82200872,151.88,151.83,5.82200872]
[1751981758995,8.75293003,151.88,151.83,8.75293003]
[1751981759141,8.75293003,151.88,151.84,8.75293003]
[1751981759345,26.0,151.92,151.86,8.75293003]
[1751981759551,26.0,151.92,151.87,8.75293003]
[1751981759864,15.33539971,151.92,151.87,8.75293003]
[1751981760768,15.33539971,151.92,151.87,15.33743046]
[1751981761666,8.75293003,151.91,151.86,8.75293003]
[1751981762964,6.58246968,151.92,151.86,15.33784936]
[1751981763269,8.75293003,151.9,151.86,15.33784936]
[1751981763458,8.75293003,151.87,151.82,8.75293003]
[1751981763650,8.75293003,151.84,151.79,6.58804927]
[1751981763844,1.5379,151.88,151.78,8.75293003]
[1751981763845,8.75293003,151.83,151.78,8.75293003]
[1751981764045,35.08,151.85,151.79,4.8697196]
[1751981764262,8.75293003,151.82,151.8,4.8697196]
[1751981764459,8.75293003,151.83,151.81,4.8697196]
[1751981764659,27.5379,151.88,151.82,4.8697196]
[1751981764660,35.08,151.85,151.82,4.8697196]
[1751981764966,8.75293003,151.83,151.77,8.75293003]
[1751981765171,8.75293003,151.82,151.78,4.86464141]
[1751981765344,8.75293003,151.82,151.79,4.86464141]
[1751981765545,8.75293003,151.82,151.8,4.86464141]
[1751981765849,8.75293003,151.81,151.77,8.75293003]
[1751981766046,8.75293003,151.81,151.78,4.86102482]
[1751981766245,8.75293003,151.81,151.79,4.86102482]
[1751981766464,23.05057955,151.84,151.8,4.86102482]
[1751981766663,8.75293003,151.81,151.76,8.75293003]
[1751981766971,23.05057955,151.84,151.77,13.61113579]
[1751981766972,6.58587987,151.84,151.77,13.61113579]
[1751981767162,8.75293003,151.83,151.79,8.75293003]
[1751981767364,8.75293003,151.83,151.8,4.85624687]
[1751981767549,8.75293003,151.82,151.78,8.75293003]
[1751981767863,8.75293003,151.82,151.77,8.75293003]
[1751981768046,8.75293003,151.82,151.78,4.85628994]
[1751981768241,8.75293003,151.81,151.79,4.85628994]
[1751981768471,8.75293003,151.81,151.77,8.75293003]
[1751981768671,8.75293003,151.81,151.78,4.85545873]
[1751981768881,8.75293003,151.82,151.79,4.85545873]
[1751981769053,8.75293003,151.82,151.77,15.34170497]
[1751981769054,15.33972148,151.82,151.77,15.34170497]
[1751981769246,15.33972148,151.82,151.78,4.85852614]
[1751981769247,8.75293003,151.82,151.78,4.85852614]
[1751981769448,61.08,151.85,151.79,4.85852614]
[1751981769649,8.75293003,151.84,151.8,4.85852614]
[1751981769866,8.75293003,151.84,151.81,4.85530441]
[1751981770066,8.75293003,151.84,151.8,8.75293003]
[1751981770266,7.68,151.87,151.82,8.75293003]
[1751981770467,7.68,151.87,151.84,8.75293003]
[1751981770670,8.75293003,151.9,151.85,13.61091667]
[1751981770871,41.3364921,151.9,151.86,4.85798664]
[1751981771075,8.75293003,151.9,151.86,8.75293003]
[1751981771682,15.33622878,151.9,151.85,8.75293003]
[1751981771976,15.33622878,151.9,151.86,4.85570242]
[1751981772161,15.33622878,151.9,151.87,4.85570242]
[1751981772366,8.75293003,151.88,151.82,25.23626445]
[1751981772567,8.75293003,151.88,151.83,13.60995877]
[1751981772766,8.75293003,151.88,151.84,4.85702874]
[1751981772963,15.33719643,151.88,151.85,4.85702874]
[1751981773162,6.5842664,151.88,151.81,15.33994716]
[1751981773478,8.75293003,151.86,151.82,4.85874147]
[1751981773665,8.75293003,151.86,151.83,4.85874147]
[1751981773866,8.75293003,151.86,151.84,4.85874147]
[1751981774075,8.75293003,151.86,151.85,4.85874475]
[1751981774279,15.33778026,151.87,151.85,4.85874475]
[1751981774584,15.33778026,151.87,151.86,4.85874475]
[1751981775257,15.33719883,151.88,151.86,4.85874475]
[1751981775579,15.33719883,151.88,151.83,8.75293003]
[1751981775755,6.5842688,151.88,151.84,4.86026859]
[1751981775957,6.5842688,151.88,151.85,4.86026859]
[1751981776170,6.5842688,151.88,151.86,4.86026859]
[1751981776370,6.5842688,151.88,151.83,8.75293003]
[1751981776570,6.5842688,151.88,151.84,4.86101121]
[1751981776770,6.5842688,151.88,151.85,4.86101121]
[1751981776972,6.5842688,151.88,151.86,4.86101121]
[1751981777175,6.5842688,151.88,151.84,8.75293003]
[1751981777485,6.5842688,151.88,151.85,4.8612252]
[1751981777486,15.33719883,151.88,151.85,4.8612252]
[1751981777778,8.75293003,151.87,151.8,6.58747718]
[1751981777995,8.75293003,151.87,151.82,8.75293003]
[1751981778156,8.75293003,151.85,151.83,4.86175839]
[1751981778360,15.33855906,151.85,151.8,6.58760339]
[1751981778661,15.33855906,151.85,151.81,13.61446211]
[1751981778862,15.33855906,151.85,151.82,4.86153208]
[1751981779169,6.58562903,151.85,151.78,6.58830607]
[1751981779370,6.58562903,151.85,151.8,8.75293003]
[1751981779371,15.33855906,151.85,151.8,8.75293003]
[1751981779680,15.33855906,151.85,151.81,4.86074009]
[1751981779876,15.33855906,151.85,151.82,4.86074009]
[1751981780078,15.33855906,151.85,151.83,4.86060187]
[1751981780277,8.75293003,151.86,151.82,8.75293003]
[1751981780470,8.75293003,151.86,151.83,4.85955559]
[1751981780673,8.75293003,151.86,151.84,4.85955559]
[1751981780867,8.75293003,151.86,151.78,23.05969165]
[1751981781173,34.96,151.87,151.83,8.75293003]
[1751981781360,34.96,151.87,151.84,4.85933169]
[1751981781556,8.75293003,151.88,151.84,8.75293003]
[1751981781784,15.33681207,151.89,151.84,8.75293003]
[1751981781981,15.33681207,151.89,151.85,4.85839172]
[1751981781982,8.75293003,151.88,151.85,4.85839172]
[1751981782179,6.58457891,151.87,151.83,8.75293003]
[1751981782499,15.33724832,151.88,151.84,4.85851407]
[1751981782666,15.33724832,151.88,151.85,4.85851407]
[1751981782980,15.33724832,151.88,151.83,8.75293003]
[1751981783178,8.75293003,151.87,151.84,4.858445]
[1751981783363,8.75293003,151.87,151.83,8.75293003]
[1751981783565,8.75293003,151.87,151.84,4.85908759]
[1751981783877,8.75293003,151.87,151.83,8.75293003]
[1751981784280,8.75293003,151.87,151.82,8.75293003]
[1751981784586,8.75293003,151.86,151.82,8.75293003]
[1751981785092,8.75293003,151.84,151.78,26.0]
[1751981785292,8.75293003,151.83,151.79,8.75293003]
[1751981785495,8.75293003,151.84,151.79,8.75293003]
[1751981785786,23.04450881,151.88,151.8,8.75293003]
[1751981785787,8.75293003,151.85,151.8,8.75293003]
[1751981785959,8.75293003,151.85,151.78,32.58836166]
[1751981786163,8.75293003,151.87,151.82,8.75293003]
[1751981786365,8.75293003,151.86,151.79,18.64964886]
[1751981786574,15.33830647,151.86,151.82,8.75293003]
[1751981788070,8.75293003,151.84,151.8,8.75293003]
[1751981788271,23.04790771,151.86,151.79,8.75293003]
[1751981788477,8.75293003,151.84,151.79,15.34073378]
[1751981789580,8.75293003,151.83,151.78,8.78293003]
[1751981789782,8.75293003,151.82,151.78,8.78293003]
[1751981789978,6.58602209,151.84,151.78,0.03]
[1751981789979,8.75293003,151.8,151.78,0.03]
[1751981790184,8.75293003,151.79,151.78,0.03]
[1751981790386,8.75293003,151.8,151.78,0.03]
[1751981790577,15.34074446,151.8,151.78,0.03]
[1751981792384,8.75293003,151.79,151.78,0.03]
[1751981792593,15.3409793,151.79,151.78,0.03]
[1751981792802,50.1809793,151.79,151.78,0.03]
[1751981793594,41.42804927,151.79,151.78,0.03]
[1751981793896,50.1809793,151.79,151.78,0.03]
[1751981794397,50.1809793,151.79,151.75,1.3567208]
[1751981794398,26.0,151.76,151.75,1.3567208]
[1751981794599,41.34228163,151.76,151.75,1.3567208]
[1751981796015,76.16228163,151.76,151.75,1.3567208]
[1751981796206,84.10068163,151.76,151.75,1.3567208]
[1751981797092,75.3477516,151.76,151.75,1.3567208]
[1751981797294,84.10068163,151.76,151.75,1.3567208]
[1751981801433,77.72608163,151.76,151.75,1.3567208]
[1751981802122,76.08228163,151.76,151.75,1.3567208]
[1751981805013,22.94190617,151.77,151.75,1.3567208]
[1751981805213,57.64190617,151.77,151.75,1.3567208]
[1751981805519,15.34228163,151.76,151.75,1.3567208]
[1751981806601,8.75293003,151.76,151.75,1.3567208]
[1751981808307,15.34228163,151.76,151.75,1.3567208]
[1751981808509,16.35293003,151.77,151.75,1.3567208]
[1751981808924,20.03242652,151.77,151.75,1.3567208]
[1751981809126,13.44348087,151.77,151.75,1.3567208]
[1751981809326,7.6,151.77,151.75,1.3867208]
[1751981810034,7.44,151.83,151.76,5.84348087]
[1751981810234,7.44,151.83,151.78,5.84348087]
[1751981810411,5.84348087,151.82,151.75,7.97647044]
[1751981810731,47.94348087,151.83,151.79,5.84348087]
[1751981811037,54.52985699,151.83,151.79,5.84348087]
[1751981811234,12.43034339,151.82,151.75,24.45093501]
[1751981811556,12.43034339,151.82,151.78,5.84348087]
[1751981811732,12.43034339,151.82,151.75,24.45093501]
[1751981812035,48.68650851,151.83,151.78,5.84348087]
[1751981812417,5.84348087,151.82,151.78,5.84348087]
[1751981812816,8.75939076,151.82,151.78,8.75939076]
[1751981813219,15.34633022,151.82,151.77,8.75939076]
[1751981814631,8.75939076,151.82,151.77,8.75939076]
[1751981814831,8.75939076,151.82,151.78,8.75939076]
[1751981815044,8.75939076,151.82,151.76,6.5893516]
[1751981815342,14.0264659,151.83,151.78,15.34785614]
[1751981815544,8.75939076,151.82,151.78,6.58846538]
[1751981816021,8.75939076,151.82,151.78,15.34785614]
[1751981816329,8.75939076,151.8,151.76,15.34872613]
[1751981816533,8.75939076,151.8,151.76,6.58933537]
[1751981816840,8.75939076,151.77,151.75,1.3867208]
[1751981817042,60.58,151.81,151.75,1.3867208]
[1751981817043,8.75939076,151.76,151.75,1.3867208]
[1751981817941,41.18850431,151.78,151.75,1.3867208]
[1751981818120,8.75939076,151.77,151.75,1.3867208]
[1751981818442,41.18850431,151.78,151.75,1.3867208]
[1751981818742,8.75939076,151.76,151.75,1.3867208]
[1751981820039,15.34837748,151.77,151.75,1.3867208]
[1751981820216,26.0,151.81,151.75,1.3867208]
[1751981820416,7.44,151.83,151.76,8.75939076]
[1751981820624,8.75939076,151.81,151.75,7.97642962]
[1751981820827,8.75939076,151.8,151.75,16.73582038]
[1751981821535,8.75939076,151.8,151.76,8.75939076]
[1751981821834,14.02647254,151.83,151.77,8.75939076]
[1751981822037,8.75939076,151.82,151.77,8.75939076]
[1751981822918,8.75939076,151.82,151.78,8.75939076]
[1751981823119,16.19939076,151.83,151.78,8.75939076]
[1751981823644,8.75939076,151.82,151.78,8.75939076]
[1751981823828,8.75939076,151.82,151.77,15.34788132]
[1751981824037,8.75939076,151.82,151.77,6.58849056]
[1751981824238,8.75939076,151.82,151.77,15.34788132]
[1751981824424,8.75939076,151.81,151.77,6.58849056]
[1751981824737,8.75939076,151.81,151.77,15.34788132]
[1751981825522,8.75939076,151.81,151.77,6.58849056]
[1751981825725,8.75939076,151.81,151.77,15.34788132]
[1751981826212,8.75939076,151.78,151.75,1.3867208]
[1751981826416,8.75939076,151.77,151.75,1.3867208]
[1751981828816,6.58804927,151.79,151.75,1.3867208]
[1751981829023,8.75939076,151.78,151.75,1.3867208]
[1751981830445,8.75939076,151.77,151.75,1.3867208]
[1751981830643,6.58857551,151.78,151.75,1.3867208]
[1751981830835,67.0877155,151.8,151.75,7.97641964]
[1751981831027,67.0877155,151.8,151.75,1.3867208]
[1751981831231,15.34668475,151.81,151.76,8.75939076]
[1751981832240,15.34668475,151.81,151.76,15.34863829]
[1751981832732,15.34668475,151.81,151.76,6.58924753]
[1751981832930,12.42792886,151.81,151.77,5.84063487]
[1751981833442,12.42792886,151.81,151.76,12.4298824]
[1751981833638,0.06,151.82,151.78,5.84063487]
[1751981834428,0.06,151.82,151.79,5.84063487]
[1751981835028,0.06,151.82,151.76,6.58924753]
[1751981835230,0.06,151.82,151.78,12.42880821]
[1751981835429,0.06,151.82,151.78,6.58817334]
[1751981835647,0.06,151.82,151.8,5.84063487]
[1751981836042,0.06,151.82,151.78,6.58817334]
[1751981836354,0.06,151.82,151.81,5.84063487]
[1751981837127,0.06,151.82,151.81,12.42781621]
[1751981838637,0.06,151.82,151.81,5.84063487]
[1751981840035,0.06,151.82,151.81,12.42781621]
[1751981841032,0.06,151.82,151.81,5.84063487]
[1751981841232,0.06,151.82,151.8,6.58761528]
[1751981841432,0.06,151.82,151.81,5.84063487]
[1751981842249,0.06,151.82,151.81,12.42781621]
[1751981842557,0.06,151.82,151.79,26.0]
[1751981842755,0.06,151.82,151.77,25.2385663]
[1751981843055,5.90063487,151.82,151.77,6.58891744]
[1751981843350,5.84063487,151.81,151.77,5.84063487]
[1751981843925,5.84063487,151.81,151.75,1.3867208]
[1751981844240,5.84063487,151.81,151.77,12.42932301]
[1751981844759,5.84063487,151.81,151.77,5.84063487]
[1751981845435,6.64674746,151.82,151.77,5.84063487]
[1751981845637,5.84063487,151.81,151.77,5.84063487]
[1751981846333,6.58751161,151.81,151.76,5.84063487]
[1751981846536,5.84063487,151.8,151.76,5.84063487]
[1751981846844,6.58751161,151.81,151.75,1.3867208]
[1751981847038,5.84063487,151.78,151.75,1.3867208]
[1751981847633,5.84063487,151.77,151.75,1.3867208]
[1751981847830,5.84063487,151.76,151.75,1.3867208]
[1751981848241,12.42998647,151.76,151.75,1.3867208]
[1751981849243,6.5893516,151.76,151.75,1.3867208]
[1751981849567,5.84063487,151.77,151.75,1.3867208]
[1751981849761,40.90861987,151.78,151.75,1.3867208]
[1751981849941,46.74925474,151.78,151.75,1.3867208]
[1751981850141,40.90861987,151.78,151.75,1.3867208]
[1751981850341,46.74925474,151.78,151.75,1.3867208]
[1751981850537,34.32,151.78,151.75,7.22735567]
[1751981851653,5.84063487,151.81,151.77,5.84063487]
[1751981851964,49.10663487,151.82,151.78,5.84063487]
[1751981852137,48.28686396,151.82,151.78,5.84063487]
[1751981852749,7.38,151.82,151.79,5.84063487]
[1751981852966,0.06,151.82,151.8,5.84063487]
[1751981853166,0.06,151.82,151.81,5.84063487]
[1751981855066,0.06,151.82,151.77,35.12194246]
[1751981855067,0.06,151.82,151.77,18.64964886]
[1751981855263,8.81497083,151.82,151.77,8.75497083]
[1751981855661,8.81497083,151.82,151.78,8.75497083]
[1751981855860,0.06,151.82,151.75,14.18521024]
[1751981856042,8.81497083,151.82,151.78,8.75497083]
[1751981856241,6.58718134,151.81,151.78,8.75497083]
[1751981856853,15.34215217,151.81,151.77,8.75497083]
[1751981857173,15.34215217,151.81,151.76,8.75497083]
[1751981857343,15.34215217,151.81,151.75,1.3867208]
[1751981857344,8.75497083,151.78,151.75,1.3867208]
[1751981857545,8.75497083,151.79,151.75,1.3867208]
[1751981857861,8.75497083,151.79,151.75,10.14169163]
[1751981858472,8.75497083,151.8,151.75,10.14169163]
[1751981859773,34.75497083,151.81,151.76,8.75497083]
[1751981860072,6.58732116,151.81,151.77,8.75497083]
[1751981860442,15.40185282,151.82,151.78,8.75497083]
[1751981861650,15.40185282,151.82,151.75,27.3867208]
[1751981861862,15.40185282,151.82,151.77,8.75497083]
[1751981862051,15.40185282,151.82,151.78,8.75497083]
[1751981862259,15.40185282,151.82,151.75,27.3867208]
[1751981862260,6.64688199,151.82,151.76,25.23896922]
[1751981862473,15.40185282,151.82,151.78,8.75497083]
[1751981862770,15.40185282,151.82,151.76,6.58932036]
[1751981862943,15.40185282,151.82,151.78,8.75497083]
[1751981863340,15.40185282,151.82,151.77,8.75497083]
[1751981863341,6.58761528,151.8,151.77,8.75497083]
[1751981863567,15.34258611,151.8,151.76,8.75497083]
[1751981863772,8.75497083,151.79,151.75,10.14169163]
[1751981864347,8.75497083,151.79,151.75,1.3867208]
[1751981864559,8.75497083,151.79,151.75,10.14169163]
[1751981866050,15.3432707,151.79,151.75,10.14169163]
[1751981866248,0.06,151.82,151.76,8.75497083]
[1751981866467,6.64689521,151.82,151.79,8.75497083]
[1751981868784,6.64689521,151.82,151.77,6.58877365]
[1751981870079,6.64689521,151.82,151.76,51.23900046]
[1751981870253,6.64689521,151.82,151.79,8.75497083]
[1751981870456,15.40186604,151.82,151.76,51.23900046]
[1751981870666,15.40186604,151.82,151.78,8.75497083]
[1751981871788,8.75497083,151.81,151.77,8.75497083]
[1751981871987,8.75497083,151.81,151.75,1.3867208]
[1751981871988,8.75497083,151.8,151.75,1.3867208]
[1751981872192,8.75497083,151.79,151.75,10.14169163]
[1751981872868,8.75497083,151.8,151.75,10.14169163]
[1751981873184,6.58804927,151.79,151.76,8.75497083]
[1751981873387,8.75497083,151.8,151.76,8.75497083]
[1751981873885,8.75497083,151.8,151.78,0.03]
[1751981874183,40.78730309,151.81,151.78,0.03]
[1751981875680,6.58730309,151.81,151.78,0.03]
[1751981876758,15.34227392,151.81,151.78,0.03]
[1751981876958,12.42804691,151.81,151.78,0.03]
[1751981877480,6.58730309,151.81,151.78,0.03]
[1751981877666,38.48764832,151.82,151.78,5.87074382]
[1751981878063,32.6469045,151.82,151.78,5.87074382]
[1751981878662,32.6469045,151.82,151.78,0.03]
[1751981878863,32.6469045,151.82,151.78,5.87074382]
[1751981879265,0.06,151.82,151.78,5.87074382]
[1751981879465,6.64682698,151.82,151.78,5.87074382]
[1751981880292,12.4875708,151.82,151.78,5.87074382]
[1751981880691,0.06,151.82,151.79,5.84074382]
[1751981880893,6.6467613,151.82,151.79,5.84074382]
[1751981881067,6.6467613,151.82,151.78,5.87074382]
[1751981881383,0.06,151.82,151.81,5.84074382]
[1751981882773,0.06,151.82,151.81,12.42792516]
[1751981883494,0.06,151.82,151.81,31.07757402]
[1751981885793,0.06,151.82,151.81,12.42792516]
[1751981886632,0.06,151.82,151.81,5.84074382]
[1751981887084,0.06,151.82,151.81,12.42792516]
[1751981889894,0.06,151.82,151.81,31.07757402]
[1751981890098,0.06,151.82,151.81,57.07757402]
[1751981891011,0.06,151.82,151.81,12.42792516]
[1751981893513,0.06,151.82,151.81,38.42792516]
[1751981895186,0.06,151.82,151.81,41.33862942]
[1751981895512,0.06,151.82,151.81,75.45862942]
[1751981895707,0.06,151.82,151.81,94.10827828]
[1751981896110,0.06,151.82,151.81,68.10827828]
[1751981896792,15.12144808,151.91,151.81,93.32767972]
[1751981896793,21.7044794,151.91,151.81,93.32767972]
[1751981896995,8.8777,151.92,151.89,8.75144808]
[1751981897317,8.8777,151.92,151.85,18.64964886]
[1751981897318,1.6377,151.92,151.9,8.75144808]
[1751981897894,16.97168785,151.92,151.88,8.75144808]
[1751981898096,8.75144808,151.91,151.87,8.75144808]
[1751981898417,8.22023977,151.92,151.87,8.75144808]
[1751981898418,16.97168785,151.92,151.87,8.75144808]
[1751981898730,8.22023977,151.92,151.87,8.75144808]
[1751981898888,16.97168785,151.92,151.87,8.75144808]
[1751981899285,1.6377,151.92,151.86,6.58470021]
[1751981899490,1.6377,151.92,151.9,8.75144808]
[1751981899720,1.6377,151.92,151.91,8.75144808]
[1751981899906,0.06,151.94,151.91,8.75144808]
[1751981900108,0.06,151.94,151.93,8.75144808]
[1751981903105,0.06,151.94,151.89,6.5835753]
[1751981903420,15.3932456,151.94,151.9,8.75144808]
[1751981903789,6.64179752,151.94,151.9,8.75144808]
[1751981904024,15.3932456,151.94,151.9,8.75144808]
[1751981904207,0.06,151.94,151.9,8.75144808]
[1751981904606,0.06,151.94,151.91,8.75144808]
[1751981905317,6.64156259,151.94,151.9,8.75144808]
[1751981906234,6.64156259,151.94,151.87,60.08]
[1751981906235,8.75144808,151.93,151.87,60.08]
[1751981906437,8.75144808,151.9,151.84,6.58587987]
[1751981906727,8.75144808,151.9,151.86,8.75144808]
[1751981907406,15.01824808,151.92,151.88,8.75144808]
[1751981907623,145.95542595,151.94,151.89,8.75144808]
[1751981907814,49.45301067,151.94,151.9,8.75144808]
[1751981908126,40.70156259,151.94,151.9,8.75144808]
[1751981908911,6.64156259,151.94,151.9,8.75144808]
[1751981909219,6.64156259,151.94,151.91,8.75144808]
[1751981910220,6.64156259,151.94,151.89,6.58352968]
[1751981910421,15.39301067,151.94,151.89,8.75144808]
[1751981910722,8.75144808,151.93,151.88,8.75144808]
[1751981910904,8.75144808,151.92,151.88,8.75144808]
[1751981911106,8.75144808,151.9,151.84,25.23548305]
[1751981911399,8.75144808,151.9,151.86,8.75144808]
[1751981911838,8.75144808,151.91,151.86,8.75144808]
[1751981913100,6.58327847,151.9,151.86,8.75144808]
[1751981913497,15.33472655,151.9,151.86,8.75144808]
[1751981913716,8.75144808,151.89,151.85,8.75144808]
[1751981913928,15.33472655,151.9,151.85,8.75144808]
[1751981914104,6.58327847,151.9,151.84,6.58571579]
[1751981914429,10.31744808,151.89,151.85,8.75144808]
[1751981914608,1.566,151.89,151.86,8.75144808]
[1751981915704,6.58358204,151.9,151.86,8.75144808]
[1751981916404,6.58296405,151.91,151.87,8.75144808]
[1751981916804,72.49470644,151.92,151.88,5.83210527]
[1751981916999,14.0545168,151.93,151.89,5.83210527]
[1751981917220,14.0545168,151.93,151.88,5.83210527]
[1751981917527,0.06,151.91,151.88,5.83210527]
[1751981921212,0.06,151.91,151.87,18.64964886]
[1751981921415,0.06,151.91,151.88,5.83210527]
[1751981923632,0.06,151.91,151.87,18.64964886]
[1751981923936,5.83210527,151.9,151.86,5.83210527]
[1751981924151,5.83210527,151.9,151.85,12.41740284]
[1751981924309,12.41553529,151.9,151.85,12.41740284]
[1751981924730,5.83210527,151.89,151.85,5.83210527]
[1751981925823,5.83210527,151.9,151.85,5.83210527]
[1751981926236,5.83210527,151.9,151.84,25.23532996]
[1751981926416,5.83210527,151.9,151.85,5.83210527]
[1751981926933,0.06,151.91,151.88,5.83210527]
[1751981927642,0.06,151.91,151.89,5.83210527]
[1751981930317,0.06,151.91,151.88,5.83210527]
[1751981933436,0.06,151.91,151.88,12.41620781]
[1751981933813,0.06,151.91,151.89,5.83210527]
[1751981934139,0.06,151.91,151.9,5.83210527]
[1751981934638,0.06,151.91,151.89,5.83210527]
[1751981935432,0.06,151.91,151.87,18.64964886]
[1751981935640,0.06,151.91,151.89,5.83210527]
[1751981936032,0.06,151.91,151.88,5.83210527]
[1751981937337,0.06,151.91,151.87,25.23401926]
[1751981937338,6.6428451,151.91,151.87,25.23401926]
[1751981937510,6.6428451,151.91,151.87,31.06612453]
[1751981937714,0.06,151.91,151.87,31.06612453]
[1751981938046,0.06,151.91,151.88,5.83210527]
[1751981940750,0.06,151.91,151.87,31.06612453]
[1751981940920,5.83210527,151.9,151.82,16.46608155]